[Event "Cellavision Cup 2019"]
[Site "Lund"]
[Date "2019.08.04"]
[Round "8.3"]
[White "Popilski, Gil"]
[Black "Marin, Mihail"]
[Result "0-1"]
[ECO "C16"]
[WhiteElo "2467"]
[BlackElo "2525"]
[Annotator "ChessBase"]
[PlyCount "100"]
[EventDate "2019.08.02"]
[EventType "swiss"]
[EventCountry "SWE"]
[SourceTitle "playchess.com"]
[Source "ChessBase"]
[SourceQuality "1"]
[TimeControl "5400+30"]

1. e4 {[%emt 0:00:00]} e6 {[%emt 0:01:12]} 2. d4 {[%emt 0:00:00]} d5 {[%emt 0:00:06]} 3. Nc3 {[%emt 0:01:15]} Bb4 {[%emt 0:00:07]} 4. e5 {[%emt 0:00:10]} b6 {[%emt 0:00:08]} 5. Nf3 {[%emt 0:07:50]} Ne7 {[%emt 0:01:28]} 6. Bd3 {[%emt 0:02:22]} Ba6 {[%emt 0:01:50]} 7. O-O {[%emt 0:00:46]} Bxd3 {[%emt 0:11:11]} 8. Qxd3 {[%emt 0:04:29]} Bxc3 {[%emt 0:00:35]} 9. Qxc3 {[%emt 0:06:38]} Nbc6 {[%emt 0:00:35]} 10. Ng5 {[%emt 0:15:49]} h6 {[%emt 0:01:52]} 11. Nh3 {[%emt 0:00:04]} Qd7 {[%emt 0:01:31]} 12. Qd3 {[%emt 0:02:15]} O-O-O {[%emt 0:09:46]} 13. Qa6+ {[%emt 0:05:41]} Kb8 {[%emt 0:00:06]} 14. c3 {[%emt 0:00:03]} f6 {[%emt 0:04:58]} 15. f4 {[%emt 0:03:11]} f5 {[%emt 0:00:31]} 16. Be3 {[%emt 0:01:37]} Rdg8 {[%emt 0:00:33]} 17. Rf3 {[%emt 0:04:51]} Nd8 {[%emt 0:01:13]} 18. Rg3 {[%emt 0:05:42]} Nf7 {[%emt 0:05:16]} 19. b3 {[%emt 0:00:44]} g6 {[%emt 0:04:13]} 20. Rd1 {[%emt 0:05:51]} Rg7 {[%emt 0:00:36]} 21. c4 {[%emt 0:04:26]} Rhg8 {[%emt 0:03:53]} 22. Kh1 {[%emt 0:03:03]} g5 {[%emt 0:01:54]} 23. Rc1 {[%emt 0:08:03]} g4 {[%emt 0:15:27]} 24. Ng1 {[%emt 0:00:09]} h5 {[%emt 0:00:05]} 25. Bd2 {[%emt 0:09:30]} h4 {[%emt 0:08:32]} 26. Rd3 {[%emt 0:00:18]} dxc4 {[%emt 0:00:09]} 27. bxc4 {[%emt 0:00:17]} h3 {[%emt 0:00:07]} 28. Ne2 {[%emt 0:02:34]} hxg2+ {[%emt 0:01:40]} 29. Kg1 {[%emt 0:01:55]} Nd8 {[%emt 0:02:07]} 30. Rd1 {[%emt 0:03:18]} Rh7 {[%emt 0:04:52]} 31. Be1 {[%emt 0:01:15]} Rgh8 {[%emt 0:01:41]} 32. Bg3 {[%emt 0:00:01]} c6 {[%emt 0:00:37]} 33. Kxg2 {[%emt 0:01:37]} Ng6 {[%emt 0:02:58]} 34. d5 {[%emt 0:00:31]} cxd5 {[%emt 0:00:37]} 35. cxd5 {[%emt 0:00:13]} exd5 {[%emt 0:00:39]} 36. Rxd5 {[%emt 0:00:20]} Qc6 {[%emt 0:02:04]} 37. Kg1 {[%emt 0:00:42]} Nb7 {[%emt 0:02:33]} 38. Qd3 {[%emt 0:00:22]} Nh4 {[%emt 0:00:59]} 39. Bxh4 {[%emt 0:00:56]} Rxh4 {[%emt 0:00:13]} 40. Rc1 {[%emt 0:00:24]} Nc5 {[%emt 0:01:40]} 41. Rd8+ {[%emt 0:00:38]} Kb7 {[%emt 0:00:25]} 42. Rxh8 {[%emt 0:00:26]} Rxh8 {[%emt 0:00:42]} 43. Qxf5 {[%emt 0:00:31]} Qf3 {[%emt 0:00:45]} 44. Rxc5 {[%emt 0:00:35]} bxc5 {[%emt 0:01:32]} 45. Qd7+ {[%emt 0:00:29]} Ka8 {[%emt 0:00:20]} 46. Nc3 {[%emt 0:00:34]} Qe3+ {[%emt 0:01:21]} 47. Kh1 {[%emt 0:00:13]} Qf3+ {[%emt 0:01:05]} 48. Kg1 {[%emt 0:00:02]} Qxc3 {[%emt 0:02:27]} 49. Qc6+ {[%emt 0:00:08]} Kb8 {[%emt 0:00:05]} 50. Qd6+ {[%emt 0:00:03]} Kb7 {[%emt 0:00:06]} 0-1

[Event "Cellavision Cup 2019"]
[Site "Lund"]
[Date "2019.08.04"]
[Round "8.4"]
[White "Burg, Twan"]
[Black "Silseth, Simon"]
[Result "1-0"]
[ECO "B14"]
[WhiteElo "2526"]
[BlackElo "2264"]
[Annotator "ChessBase"]
[PlyCount "125"]
[EventDate "2019.08.02"]
[EventType "swiss"]
[EventCountry "SWE"]
[SourceTitle "playchess.com"]
[Source "ChessBase"]
[SourceQuality "1"]
[TimeControl "5400+30"]

1. e4 {[%emt 0:00:00]} c6 {[%emt 0:00:22]} 2. d4 {[%emt 0:00:09]} d5 {[%emt 0:00:16]} 3. exd5 {[%emt 0:00:18]} cxd5 {[%emt 0:00:12]} 4. c4 {[%emt 0:01:10]} Nf6 {[%emt 0:00:44]} 5. Nc3 {[%emt 0:00:07]} e6 {[%emt 0:01:34]} 6. Nf3 {[%emt 0:00:31]} Bb4 {[%emt 0:02:34]} 7. cxd5 {[%emt 0:00:23]} exd5 {[%emt 0:02:53]} 8. Ne5 {[%emt 0:04:10]} O-O {[%emt 0:02:14]} 9. Bd3 {[%emt 0:02:36]} Ne4 {[%emt 0:05:53]} 10. O-O {[%emt 0:02:06]} Nxc3 {[%emt 0:10:15]} 11. bxc3 {[%emt 0:00:10]} Bxc3 {[%emt 0:04:28]} 12. Bxh7+ {[%emt 0:00:24]} Kxh7 {[%emt 0:02:15]} 13. Qd3+ {[%emt 0:00:02]} Kg8 {[%emt 0:00:40]} 14. Qxc3 {[%emt 0:00:02]} Nc6 {[%emt 0:11:37]} 15. Nxc6 {[%emt 0:00:16]} bxc6 {[%emt 0:01:27]} 16. Qxc6 {[%emt 0:00:31]} Bf5 {[%emt 0:00:25]} 17. Ba3 {[%emt 0:14:18]} Re8 {[%emt 0:01:15]} 18. Rfe1 {[%emt 0:02:20]} Qd7 {[%emt 0:02:03]} 19. Qc3 {[%emt 0:06:29]} Rxe1+ {[%emt 0:04:59]} 20. Rxe1 {[%emt 0:00:07]} Qa4 {[%emt 0:03:31]} 21. h4 {[%emt 0:02:47]} Re8 {[%emt 0:03:40]} 22. Bc5 {[%emt 0:14:04]} a6 {[%emt 0:01:47]} 23. h5 {[%emt 0:03:19]} Kh7 {[%emt 0:06:08]} 24. a3 {[%emt 0:04:42]} Qc2 {[%emt 0:07:19]} 25. Rc1 {[%emt 0:00:58]} Qxc3 {[%emt 0:03:09]} 26. Rxc3 {[%emt 0:00:01]} Bg4 {[%emt 0:01:57]} 27. Rg3 {[%emt 0:00:08]} Be2 {[%emt 0:02:30]} 28. Rg5 {[%emt 0:01:58]} Bc4 {[%emt 0:00:12]} 29. Bb4 {[%emt 0:04:05]} Re4 {[%emt 0:00:34]} 30. Bf8 {[%emt 0:01:13]} g6 {[%emt 0:01:44]} 31. hxg6+ {[%emt 0:01:39]} fxg6 {[%emt 0:00:07]} 32. Bc5 {[%emt 0:00:25]} Re1+ {[%emt 0:00:56]} 33. Kh2 {[%emt 0:00:02]} Re2 {[%emt 0:00:26]} 34. f3 {[%emt 0:02:41]} Kg7 {[%emt 0:00:48]} 35. Rg4 {[%emt 0:02:18]} Re6 {[%emt 0:00:18]} 36. Kg3 {[%emt 0:00:51]} Rf6 {[%emt 0:00:41]} 37. Rh4 {[%emt 0:00:42]} Rf5 {[%emt 0:00:38]} 38. Rh1 {[%emt 0:00:38]} Rg5+ {[%emt 0:01:30]} 39. Kf2 {[%emt 0:00:10]} Rf5 {[%emt 0:00:58]} 40. Re1 {[%emt 0:00:12]} Rf7 {[%emt 0:00:07]} 41. g4 {[%emt 0:02:52]} Rb7 {[%emt 0:00:24]} 42. Kg3 {[%emt 0:00:26]} Rf7 {[%emt 0:00:50]} 43. Be7 {[%emt 0:05:14]} Kg8 {[%emt 0:00:40]} 44. f4 {[%emt 0:00:46]} Rh7 {[%emt 0:00:33]} 45. Bd6 {[%emt 0:00:48]} Rd7 {[%emt 0:00:21]} 46. Be5 {[%emt 0:04:51]} Bd3 {[%emt 0:00:22]} 47. Kh4 {[%emt 0:01:57]} Kf7 {[%emt 0:00:59]} 48. Kg5 {[%emt 0:00:15]} Rb7 {[%emt 0:03:08]} 49. Rh1 {[%emt 0:00:52]} Rb1 {[%emt 0:01:12]} 50. Rh7+ {[%emt 0:00:47]} Ke8 {[%emt 0:00:08]} 51. Rh3 {[%emt 0:01:08]} Be4 {[%emt 0:01:35]} 52. Rh8+ {[%emt 0:00:30]} Kd7 {[%emt 0:00:25]} 53. Rh7+ {[%emt 0:00:11]} Kc6 {[%emt 0:00:33]} 54. Kf6 {[%emt 0:03:43]} Rg1 {[%emt 0:05:03]} 55. g5 {[%emt 0:02:18]} Ra1 {[%emt 0:00:18]} 56. Rc7+ {[%emt 0:02:03]} Kb6 {[%emt 0:00:19]} 57. Rg7 {[%emt 0:00:53]} Rxa3 {[%emt 0:00:16]} 58. Rxg6 {[%emt 0:00:31]} Bxg6 {[%emt 0:00:13]} 59. Kxg6 {[%emt 0:00:02]} Rf3 {[%emt 0:00:17]} 60. f5 {[%emt 0:00:04]} a5 {[%emt 0:00:13]} 61. f6 {[%emt 0:00:45]} Kc6 {[%emt 0:00:34]} 62. f7 {[%emt 0:00:21]} a4 {[%emt 0:01:05]} 63. Bf6 {[%emt 0:00:15]} 1-0

[Event "Cellavision Cup 2019"]
[Site "Lund"]
[Date "2019.08.04"]
[Round "8.5"]
[White "Hector, Jonny"]
[Black "Lindberg, Bengt"]
[Result "1/2-1/2"]
[ECO "B47"]
[WhiteElo "2487"]
[BlackElo "2384"]
[Annotator "ChessBase"]
[PlyCount "219"]
[EventDate "2019.08.02"]
[EventType "swiss"]
[EventCountry "SWE"]
[SourceTitle "playchess.com"]
[Source "ChessBase"]
[SourceQuality "1"]
[TimeControl "5400+30"]

1. e4 {[%emt 0:00:00]} c5 {[%emt 0:00:00]} 2. Nf3 {[%emt 0:00:00]} e6 {[%emt 0:00:00]} 3. d4 {[%emt 0:00:00]} cxd4 {[%emt 0:00:00]} 4. Nxd4 {[%emt 0:00:00]} Nc6 {[%emt 0:00:00]} 5. Nc3 {[%emt 0:00:11]} Qc7 {[%emt 0:00:00]} 6. f4 {[%emt 0:00:39]} a6 {[%emt 0:00:23]} 7. Nxc6 {[%emt 0:00:21]} Qxc6 {[%emt 0:01:46]} 8. Bd3 {[%emt 0:01:26]} b5 {[%emt 0:00:15]} 9. Qe2 {[%emt 0:00:44]} Bb7 {[%emt 0:03:05]} 10. a4 {[%emt 0:02:40]} b4 {[%emt 0:04:42]} 11. Nd5 {[%emt 0:00:26]} Nf6 {[%emt 0:03:27]} 12. Nxf6+ {[%emt 0:05:26]} gxf6 {[%emt 0:00:13]} 13. Bd2 {[%emt 0:02:06]} d5 {[%emt 0:06:52]} 14. exd5 {[%emt 0:03:23]} Qxd5 {[%emt 0:00:09]} 15. Rg1 {[%emt 0:09:21]} Bc5 {[%emt 0:09:40]} 16. Be3 {[%emt 0:00:12]} Bxe3 {[%emt 0:04:10]} 17. Qxe3 {[%emt 0:00:15]} O-O-O {[%emt 0:01:38]} 18. O-O-O {[%emt 0:03:00]} Qc6 {[%emt 0:05:56]} 19. Kb1 {[%emt 0:01:14]} Rd5 {[%emt 0:03:30]} 20. Be2 {[%emt 0:03:22]} Qc5 {[%emt 0:07:19]} 21. Qxc5+ {[%emt 0:08:15]} Rxc5 {[%emt 0:00:03]} 22. Rd4 {[%emt 0:01:43]} a5 {[%emt 0:00:05]} 23. g4 {[%emt 0:00:56]} Bc6 {[%emt 0:02:58]} 24. b3 {[%emt 0:01:58]} Kc7 {[%emt 0:06:03]} 25. Rgd1 {[%emt 0:10:55]} Rd5 {[%emt 0:04:22]} 26. Rxd5 {[%emt 0:01:34]} Bxd5 {[%emt 0:00:09]} 27. Kb2 {[%emt 0:00:53]} Kc6 {[%emt 0:04:50]} 28. Rd3 {[%emt 0:03:06]} Be4 {[%emt 0:02:04]} 29. Rh3 {[%emt 0:04:05]} Rd8 {[%emt 0:01:04]} 30. Kc1 {[%emt 0:00:24]} Bg6 {[%emt 0:02:46]} 31. f5 {[%emt 0:01:40]} exf5 {[%emt 0:00:13]} 32. gxf5 {[%emt 0:01:37]} Bxf5 {[%emt 0:00:01]} 33. Rh5 {[%emt 0:00:27]} Be4 {[%emt 0:04:26]} 34. Rxa5 {[%emt 0:00:30]} f5 {[%emt 0:00:17]} 35. Ra7 {[%emt 0:05:33]} Rg8 {[%emt 0:00:30]} 36. Rxf7 {[%emt 0:04:51]} Rg2 {[%emt 0:00:23]} 37. Kd1 {[%emt 0:04:47]} Rxh2 {[%emt 0:09:43]} 38. a5 {[%emt 0:01:46]} Bxc2+ {[%emt 0:03:19]} 39. Ke1 {[%emt 0:04:45]} Bxb3 {[%emt 0:01:35]} 40. Bf3+ {[%emt 0:00:20]} Kb5 {[%emt 0:01:52]} 41. Rxf5+ {[%emt 0:01:11]} Ka6 {[%emt 0:00:06]} 42. Be2+ {[%emt 0:04:58]} Rxe2+ {[%emt 0:05:33]} 43. Kxe2 {[%emt 0:00:12]} Bc4+ {[%emt 0:00:21]} 44. Kd2 {[%emt 0:00:05]} Bb5 {[%emt 0:00:13]} 45. Kc2 {[%emt 0:00:16]} Ba4+ {[%emt 0:00:15]} 46. Kb2 {[%emt 0:00:06]} h6 {[%emt 0:00:53]} 47. Rh5 {[%emt 0:00:22]} Bd1 {[%emt 0:00:05]} 48. Rd5 {[%emt 0:01:14]} Ba4 {[%emt 0:00:06]} 49. Ka2 {[%emt 0:00:44]} Bc2 {[%emt 0:00:06]} 50. Ka1 {[%emt 0:00:46]} Bb3 {[%emt 0:00:17]} 51. Rc5 {[%emt 0:00:24]} Bd1 {[%emt 0:00:11]} 52. Kb2 {[%emt 0:00:31]} Ba4 {[%emt 0:00:05]} 53. Rd5 {[%emt 0:00:06]} Be8 {[%emt 0:00:28]} 54. Rd8 {[%emt 0:01:10]} Ba4 {[%emt 0:00:24]} 55. Ra8+ {[%emt 0:00:30]} Kb7 {[%emt 0:00:05]} 56. Rf8 {[%emt 0:01:20]} Ka6 {[%emt 0:00:10]} 57. Rf5 {[%emt 0:00:18]} Bd1 {[%emt 0:00:12]} 58. Re5 {[%emt 0:00:52]} Ba4 {[%emt 0:00:06]} 59. Kc1 {[%emt 0:00:09]} Bb5 {[%emt 0:00:06]} 60. Kc2 {[%emt 0:00:15]} Ba4+ {[%emt 0:01:02]} 61. Kd3 {[%emt 0:00:40]} Bb5+ {[%emt 0:00:21]} 62. Kc2 {[%emt 0:00:09]} Ba4+ {[%emt 0:00:04]} 63. Kb2 {[%emt 0:02:26]} Bd1 {[%emt 0:00:05]} 64. Rc5 {[%emt 0:00:44]} Ba4 {[%emt 0:00:05]} 65. Rd5 {[%emt 0:00:09]} Be8 {[%emt 0:00:33]} 66. Re5 {[%emt 0:00:27]} Ba4 {[%emt 0:00:07]} 67. Rh5 {[%emt 0:00:07]} Bd1 {[%emt 0:00:17]} 68. Rxh6+ {[%emt 0:00:34]} Kxa5 {[%emt 0:00:05]} 69. Rh4 {[%emt 0:00:07]} Kb5 {[%emt 0:04:13]} 70. Kc1 {[%emt 0:00:12]} Bb3 {[%emt 0:01:06]} 71. Kd2 {[%emt 0:00:08]} Bf7 {[%emt 0:00:50]} 72. Kd3 {[%emt 0:00:22]} Bg8 {[%emt 0:00:26]} 73. Kd4 {[%emt 0:00:13]} Bf7 {[%emt 0:00:24]} 74. Rh7 {[%emt 0:00:30]} Bg8 {[%emt 0:01:40]} 75. Rb7+ {[%emt 0:00:13]} Ka4 {[%emt 0:00:03]} 76. Kc5 {[%emt 0:00:11]} Ka3 {[%emt 0:00:04]} 77. Rxb4 {[%emt 0:00:37]} Ka2 {[%emt 0:00:03]} 78. Rg4 {[%emt 0:00:24]} Bf7 {[%emt 0:00:09]} 79. Kb4 {[%emt 0:00:06]} Be6 {[%emt 0:01:08]} 80. Rf4 {[%emt 0:00:20]} Bg8 {[%emt 0:00:19]} 81. Kc3 {[%emt 0:00:33]} Be6 {[%emt 0:01:24]} 82. Rf2+ {[%emt 0:00:50]} Ka1 {[%emt 0:00:30]} 83. Kc2 {[%emt 0:00:20]} Bg8 {[%emt 0:01:09]} 84. Rf8 {[%emt 0:01:04]} Bd5 {[%emt 0:01:26]} 85. Rf4 {[%emt 0:00:19]} Be6 {[%emt 0:00:13]} 86. Ra4+ {[%emt 0:00:34]} Ba2 {[%emt 0:00:06]} 87. Rb4 {[%emt 0:00:04]} Be6 {[%emt 0:01:14]} 88. Rb1+ {[%emt 0:00:15]} Ka2 {[%emt 0:00:02]} 89. Rb6 {[%emt 0:00:15]} Bf5+ {[%emt 0:00:11]} 90. Kc3 {[%emt 0:00:06]} Bh7 {[%emt 0:00:32]} 91. Rb2+ {[%emt 0:00:23]} Ka1 {[%emt 0:00:14]} 92. Kb3 {[%emt 0:00:10]} Bg8+ {[%emt 0:01:07]} 93. Kc2 {[%emt 0:00:21]} Bh7+ {[%emt 0:00:55]} 94. Kc1 {[%emt 0:00:06]} Bg8 {[%emt 0:00:38]} 95. Rb6 {[%emt 0:00:30]} Bd5 {[%emt 0:00:20]} 96. Kc2 {[%emt 0:00:37]} Be4+ {[%emt 0:00:11]} 97. Kc3 {[%emt 0:00:05]} Bf5 {[%emt 0:00:37]} 98. Kb3 {[%emt 0:00:20]} Be4 {[%emt 0:01:00]} 99. Rd6 {[%emt 0:00:36]} Bh7 {[%emt 0:00:16]} 100. Rd8 {[%emt 0:01:10]} Be4 {[%emt 0:00:15]} 101. Rd4 {[%emt 0:00:52]} Bg6 {[%emt 0:00:30]} 102. Ra4+ {[%emt 0:00:38]} Kb1 {[%emt 0:00:05]} 103. Rf4 {[%emt 0:00:24]} Bc2+ {[%emt 0:00:40]} 104. Kc3 {[%emt 0:00:05]} Bh7 {[%emt 0:00:35]} 105. Rg4 {[%emt 0:00:47]} Bf5 {[%emt 0:00:16]} 106. Rg2 {[%emt 0:00:17]} Ka1 {[%emt 0:00:24]} 107. Kb3 {[%emt 0:00:08]} Be6+ {[%emt 0:00:47]} 108. Ka3 {[%emt 0:00:06]} Bf5 {[%emt 0:00:35]} 109. Rg1+ {[%emt 0:00:15]} Bb1 {[%emt 0:00:05]} 110. Rh1 1/2-1/2

[Event "Cellavision Cup 2019"]
[Site "Lund"]
[Date "2019.08.04"]
[Round "8.6"]
[White "Olund, Joar"]
[Black "Kristiansen, Jens"]
[Result "0-1"]
[ECO "A45"]
[WhiteElo "2313"]
[BlackElo "2400"]
[Annotator "NA"]
[PlyCount "134"]
[EventDate "2019.08.02"]
[EventType "swiss"]
[EventCountry "SWE"]
[SourceTitle "playchess.com"]
[Source "ChessBase"]
[SourceQuality "1"]
[TimeControl "5400+30"]

1. d4 {[%emt 0:02:33]} Nf6 {[%emt 0:00:00]} 2. Bg5 {[%emt 0:01:24]} c5 {[%emt 0:00:21]} 3. d5 {[%emt 0:00:21]} d6 {[%emt 0:00:31]} 4. Nc3 {[%emt 0:01:57]} g6 {[%emt 0:01:00]} 5. e4 {[%emt 0:01:06]} Bg7 {[%emt 0:00:57]} 6. Be2 {[%emt 0:00:23]} O-O {[%emt 0:00:22]} 7. a4 {[%emt 0:05:09]} h6 {[%emt 0:02:38]} 8. Bf4 {[%emt 0:01:29]} Na6 {[%emt 0:16:12]} 9. Nf3 {[%emt 0:00:46]} Nc7 {[%emt 0:00:26]} 10. h3 {[%emt 0:02:39]} a6 {[%emt 0:00:46]} 11. Nd2 {[%emt 0:15:51]} Bd7 {[%emt 0:04:17]} 12. a5 {[%emt 0:05:11]} Nb5 {[%emt 0:00:37]} 13. Na4 {[%emt 0:20:30]} e6 {[%emt 0:09:27]} 14. c4 {[%emt 0:04:16]} Nd4 {[%emt 0:01:23]} 15. Nb6 {[%emt 0:01:48]} exd5 {[%emt 0:05:26]} 16. Nxa8 {[%emt 0:01:39]} Re8 {[%emt 0:04:03]} 17. O-O {[%emt 0:02:00]} Nxe4 {[%emt 0:01:57]} 18. Bd3 {[%emt 0:02:58]} Qf6 {[%emt 0:04:52]} 19. Bxe4 {[%emt 0:08:12]} Qxf4 {[%emt 0:03:53]} 20. g3 {[%emt 0:02:11]} Qf6 {[%emt 0:07:46]} 21. Bg2 {[%emt 0:00:37]} Rxa8 {[%emt 0:00:43]} 22. cxd5 h5 {[%emt 0:05:35]} 23. Ne4 {[%emt 0:02:00]} Qe7 {[%emt 0:01:03]} 24. Re1 {[%emt 0:00:51]} Qf8 {[%emt 0:00:14]} 25. Ra3 {[%emt 0:01:51]} Bf5 {[%emt 0:00:52]} 26. Rae3 {[%emt 0:00:47]} Qd8 {[%emt 0:02:10]} 27. g4 {[%emt 0:02:15]} hxg4 {[%emt 0:00:10]} 28. hxg4 {[%emt 0:00:01]} Bxe4 {[%emt 0:00:28]} 29. Rxe4 {[%emt 0:00:04]} Qxa5 {[%emt 0:06:36]} 30. Qc1 {[%emt 0:02:43]} Qb5 {[%emt 0:03:29]} 31. R1e3 {[%emt 0:09:55]} Bh6 {[%emt 0:03:08]} 32. f4 {[%emt 0:00:02]} g5 {[%emt 0:05:57]} 33. Bf1 {[%emt 0:01:18]} Qd7 {[%emt 0:01:28]} 34. f5 {[%emt 0:00:16]} Bg7 {[%emt 0:02:04]} 35. Rh3 {[%emt 0:01:41]} Bf6 {[%emt 0:00:44]} 36. Rh5 {[%emt 0:00:22]} Kf8 {[%emt 0:02:57]} 37. Kg2 {[%emt 0:00:39]} Re8 {[%emt 0:00:34]} 38. Qe3 {[%emt 0:00:43]} Rxe4 {[%emt 0:01:03]} 39. Qxe4 {[%emt 0:00:01]} Qa4 {[%emt 0:01:07]} 40. Kg1 {[%emt 0:00:58]} Qb3 {[%emt 0:00:46]} 41. Qg2 {[%emt 0:00:16]} Nf3+ {[%emt 0:01:22]} 42. Kh1 {[%emt 0:00:15]} Nh4 {[%emt 0:00:15]} 43. Rxh4 {[%emt 0:00:56]} gxh4 {[%emt 0:00:07]} 44. g5 {[%emt 0:00:01]} Be5 {[%emt 0:00:40]} 45. f6 {[%emt 0:01:02]} Qg3 {[%emt 0:00:45]} 46. Qxg3 {[%emt 0:00:26]} hxg3 {[%emt 0:00:18]} 47. b3 {[%emt 0:00:15]} b5 {[%emt 0:00:41]} 48. Bd3 {[%emt 0:00:26]} Bf4 {[%emt 0:00:28]} 49. Kg2 {[%emt 0:00:27]} Bxg5 {[%emt 0:00:10]} 50. Kxg3 {[%emt 0:00:05]} Bxf6 {[%emt 0:00:05]} 51. Bf5 {[%emt 0:00:09]} Ke7 {[%emt 0:00:18]} 52. Bc8 {[%emt 0:00:05]} a5 {[%emt 0:00:08]} 53. Ba6 {[%emt 0:00:03]} a4 {[%emt 0:00:14]} 54. bxa4 {[%emt 0:00:54]} bxa4 {[%emt 0:00:07]} 55. Kf3 {[%emt 0:00:25]} a3 {[%emt 0:00:12]} 56. Bc4 {[%emt 0:00:03]} Kd8 {[%emt 0:00:22]} 57. Ke4 {[%emt 0:00:36]} Kc7 {[%emt 0:00:04]} 58. Kd3 {[%emt 0:00:03]} Bb2 {[%emt 0:00:41]} 59. Kc2 {[%emt 0:00:16]} Kd7 {[%emt 0:00:19]} 60. Kd3 {[%emt 0:00:10]} Ke7 {[%emt 0:00:07]} 61. Ke4 {[%emt 0:00:39]} Kf6 {[%emt 0:00:06]} 62. Kf4 {[%emt 0:00:08]} Bc1+ {[%emt 0:00:08]} 63. Ke4 {[%emt 0:00:05]} Kg5 {[%emt 0:00:09]} 64. Bb3 {[%emt 0:00:29]} f5+ {[%emt 0:00:07]} 65. Kf3 {[%emt 0:00:07]} Kf6 {[%emt 0:00:08]} 66. Ke2 {[%emt 0:00:07]} Ke5 {[%emt 0:00:06]} 67. Kd3 {[%emt 0:00:08]} f4 {[%emt 0:00:21] Kd4+} 0-1

[Event "Cellavision Cup 2019"]
[Site "Lund"]
[Date "2019.08.04"]
[Round "8.7"]
[White "Frisk, Ellinor"]
[Black "Blomqvist, Erik"]
[Result "0-1"]
[ECO "E46"]
[WhiteElo "2264"]
[BlackElo "2492"]
[Annotator "ChessBase"]
[PlyCount "78"]
[EventDate "2019.08.02"]
[EventType "swiss"]
[EventCountry "SWE"]
[SourceTitle "playchess.com"]
[Source "ChessBase"]
[SourceQuality "1"]
[TimeControl "5400+30"]

1. d4 {[%emt 0:00:00]} Nf6 {[%emt 0:00:00]} 2. c4 {[%emt 0:00:00]} e6 {[%emt 0:00:04]} 3. Nc3 Bb4 {[%emt 0:00:49]} 4. e3 {[%emt 0:00:11]} O-O {[%emt 0:00:31]} 5. Nge2 {[%emt 0:00:24]} Re8 {[%emt 0:00:35]} 6. a3 {[%emt 0:00:44]} Bf8 {[%emt 0:00:08]} 7. Ng3 {[%emt 0:00:48]} d5 {[%emt 0:00:35]} 8. cxd5 {[%emt 0:04:45]} exd5 {[%emt 0:00:20]} 9. Bd3 {[%emt 0:00:28]} b6 {[%emt 0:02:56]} 10. O-O {[%emt 0:01:53]} Ba6 {[%emt 0:05:36]} 11. Bxa6 {[%emt 0:00:54]} Nxa6 {[%emt 0:00:07]} 12. Qd3 {[%emt 0:00:12]} Qc8 {[%emt 0:00:30]} 13. e4 {[%emt 0:03:32]} dxe4 {[%emt 0:00:18]} 14. Ngxe4 {[%emt 0:00:19]} Nxe4 {[%emt 0:01:02]} 15. Nxe4 {[%emt 0:00:07]} c5 {[%emt 0:04:44]} 16. dxc5 {[%emt 0:11:06]} Nxc5 {[%emt 0:00:28]} 17. Nxc5 {[%emt 0:00:11]} Bxc5 {[%emt 0:00:09]} 18. Bd2 {[%emt 0:04:07]} Rd8 {[%emt 0:04:15]} 19. Qe2 {[%emt 0:00:26]} Qf5 {[%emt 0:00:18]} 20. Bc3 {[%emt 0:00:44]} Re8 {[%emt 0:01:20]} 21. Qc4 {[%emt 0:04:43]} b5 {[%emt 0:02:56]} 22. Qh4 {[%emt 0:01:34]} Re4 {[%emt 0:02:38]} 23. Qg3 {[%emt 0:01:37]} Rg4 {[%emt 0:02:22]} 24. Qe5 {[%emt 0:00:47]} Qf3 {[%emt 0:01:15]} 25. g3 {[%emt 0:01:26]} Rc8 {[%emt 0:09:48]} 26. Rae1 {[%emt 0:15:30]} h5 {[%emt 0:01:42]} 27. Bd2 {[%emt 0:14:16]} Rc6 {[%emt 0:15:00]} 28. Bf4 {[%emt 0:06:01]} Bb6 {[%emt 0:13:57]} 29. Qe8+ {[%emt 0:08:38]} Kh7 {[%emt 0:00:03]} 30. Qxf7 {[%emt 0:00:39]} Rcg6 {[%emt 0:00:27]} 31. Re8 {[%emt 0:02:33]} Rxf4 {[%emt 0:03:13]} 32. Qg8+ {[%emt 0:01:21]} Kh6 {[%emt 0:00:18]} 33. Qh8+ {[%emt 0:00:30]} Kg5 {[%emt 0:00:05]} 34. Re5+ {[%emt 0:09:18]} Kf6 {[%emt 0:00:41]} 35. Qf8+ {[%emt 0:02:29]} Kxe5 {[%emt 0:00:09]} 36. Re1+ {[%emt 0:00:19]} Kd5 {[%emt 0:00:26]} 37. Qa8+ {[%emt 0:02:20]} Rc6 {[%emt 0:01:27]} 38. gxf4 {[%emt 0:00:59]} Qxf2+ {[%emt 0:00:15]} 39. Kh1 {[%emt 0:00:04]} Qf3# {[%emt 0:00:07]} 0-1

[Event "Cellavision Cup 2019"]
[Site "Lund"]
[Date "2019.08.04"]
[Round "8.8"]
[White "Cramling, Pia"]
[Black "Bogo, Soren"]
[Result "1-0"]
[ECO "E71"]
[WhiteElo "2479"]
[BlackElo "2250"]
[Annotator "ChessBase"]
[PlyCount "43"]
[EventDate "2019.08.02"]
[EventType "swiss"]
[EventCountry "SWE"]
[SourceTitle "playchess.com"]
[Source "ChessBase"]
[SourceQuality "1"]
[TimeControl "5400+30"]

1. c4 {[%emt 0:00:00]} Nf6 {[%emt 0:00:59]} 2. Nc3 {[%emt 0:00:00]} g6 {[%emt 0:00:38]} 3. e4 {[%emt 0:00:29]} d6 {[%emt 0:00:05]} 4. d4 {[%emt 0:00:27]} Bg7 {[%emt 0:00:05]} 5. h3 {[%emt 0:01:57]} O-O {[%emt 0:00:41]} 6. Be3 {[%emt 0:00:06]} e5 {[%emt 0:05:51]} 7. d5 {[%emt 0:00:11]} c5 {[%emt 0:01:46]} 8. Bd3 {[%emt 0:10:50]} Na6 {[%emt 0:00:25]} 9. Nge2 {[%emt 0:08:12]} Bd7 {[%emt 0:00:50]} 10. Qd2 {[%emt 0:02:17]} Qe7 {[%emt 0:05:35]} 11. a3 {[%emt 0:04:04]} Rfb8 {[%emt 0:02:42]} 12. O-O {[%emt 0:01:13]} Nc7 {[%emt 0:00:37]} 13. b4 {[%emt 0:01:47]} b6 {[%emt 0:02:34]} 14. Rab1 {[%emt 0:03:40]} Nfe8 {[%emt 0:07:05]} 15. Bc2 {[%emt 0:03:51]} a6 {[%emt 0:00:20]} 16. Rb3 {[%emt 0:10:02]} b5 {[%emt 0:15:41]} 17. bxc5 {[%emt 0:00:52]} dxc5 {[%emt 0:00:02]} 18. Rd1 {[%emt 0:01:30]} Bf8 {[%emt 0:00:22]} 19. Bd3 {[%emt 0:03:39]} Nd6 {[%emt 0:12:26]} 20. Qa2 {[%emt 0:03:23]} bxc4 {[%emt 0:04:15]} 21. Rxb8 {[%emt 0:00:07]} cxd3 {[%emt 0:01:02]} 22. Rxa8 {[%emt 0:00:47]} 1-0

[Event "Cellavision Cup 2019"]
[Site "Lund"]
[Date "2019.08.04"]
[Round "8.9"]
[White "Dourerassou, Jonathan"]
[Black "Petersson, Baldur Teodor"]
[Result "1-0"]
[ECO "B43"]
[WhiteElo "2477"]
[BlackElo "2179"]
[Annotator "ChessBase"]
[PlyCount "33"]
[EventDate "2019.08.02"]
[EventType "swiss"]
[EventCountry "SWE"]
[SourceTitle "playchess.com"]
[Source "ChessBase"]
[SourceQuality "1"]
[TimeControl "5400+30"]

1. e4 {[%emt 0:00:00]} c5 {[%emt 0:00:55]} 2. Nf3 {[%emt 0:00:00]} e6 {[%emt 0:00:22]} 3. d4 {[%emt 0:00:00]} cxd4 {[%emt 0:00:11]} 4. Nxd4 {[%emt 0:00:00]} a6 {[%emt 0:00:08]} 5. Nc3 {[%emt 0:00:02]} Qc7 {[%emt 0:00:08]} 6. Bd3 {[%emt 0:00:06]} Nf6 {[%emt 0:00:39]} 7. O-O {[%emt 0:00:08]} Bc5 {[%emt 0:00:09]} 8. Be3 {[%emt 0:00:48]} d6 {[%emt 0:03:55]} 9. Qf3 {[%emt 0:03:42]} Nc6 {[%emt 0:06:44]} 10. Nxc6 {[%emt 0:03:56]} Bxe3 {[%emt 0:02:23]} 11. fxe3 {[%emt 0:03:53]} Qxc6 {[%emt 0:03:03]} 12. Qg3 {[%emt 0:00:17]} Kf8 {[%emt 0:03:57]} 13. e5 {[%emt 0:00:58]} dxe5 {[%emt 0:01:26]} 14. Qxe5 {[%emt 0:00:20]} b6 {[%emt 0:02:57]} 15. Rxf6 {[%emt 0:01:57]} gxf6 {[%emt 0:06:38]} 16. Qxf6 {[%emt 0:00:31]} Rg8 {[%emt 0:00:07]} 17. Be4 {[%emt 0:00:21]} 1-0